Cogmind - Beta 10.2 @@@ ROGUE MODE // 2021.07.25 @ 21:31:46 Player: zapruda Result: Destroyed by G-47 Trooper with Particle Gun Performance ------------- Evolutions (3) 1500 Regions Visited (5) 1000 Robots Destroyed (68) 340 Value Destroyed (1949) 1949 Prototype IDs (10) 200 Alien Tech Used (0) 0 Bonus (219) 219 TOTAL SCORE: 5208 Bonus ------- High Alert Combat Kills 219 Cogmind --------- Core Integrity 0/700 Matter 272/300 Energy 43/100 System Corruption 4% Temperature Cool (9) Movement Flying (97) Ox1 Location -7/Storage Parts ------- > --- POWER (1) -------- (None) > --- PROPULSION (2) --- Improved Cesium-ion Thruster Cooled VTOL Module > --- UTILITY (8) ------ Large Storage Unit Enhanced Optical Array Transport Network Coupler Advanced Targeting Computer Improved ECM Suite > --- WEAPON (2) ------- Katana > --- INVENTORY (10) --- High-capacity Matter Pod (200) Hardened Medium Armor Plating Hardlight Generator Improved Grenade Launcher Peak State ------------ > --- POWER ------------ Light Nuclear Core > --- PROPULSION ------- Improved Cesium-ion Thruster Improved Cesium-ion Thruster > --- UTILITY ---------- Large Storage Unit Weight Redist. System Enhanced Optical Array Transport Network Coupler Advanced Targeting Computer Hacking Suite System Shield System Shield > --- WEAPON ----------- Heavy Ion Cannon Katana > --- INVENTORY -------- Cooled VTOL Module Cooled VTOL Module Compact Battery High-capacity Matter Pod Improved ECM Suite Hardened Medium Armor Plating Hardlight Generator Advanced Beam Rifle Improved Grenade Launcher [Rating: 43] Favorites ----------- Power Improved Ion Engine Engine Improved Ion Engine Power Core Light Nuclear Core Propulsion Gravmag System Treads Light Treads Leg Titanium Leg Wheel Compact Wheel Hover Unit Gravmag System Flight Unit Improved Cesium-ion Thruster Utility Large Storage Unit Device Disposable Heat Sink Storage Large Storage Unit Processor Transport Network Coupler Hackware Hacking Suite Protection Hardened Medium Armor Plating Weapon Heavy Ion Cannon Energy Gun Advanced Beam Rifle Energy Cannon Heavy Ion Cannon Ballistic Gun Heavy Assault Rifle Launcher Mini Grenade Launcher Special Weapon Mining Laser Slashing Weapon Katana Build | -11 -10 -9 -8 -7 -7 ------- Run | Scr Mat Mat Mat Fac Sto Slots Evolved 6 | . . 2 2 2 . Power . | . . . . . . Propulsion . | . . . . . . Utility 6 | . . 2 2 2 . Weapon . | . . . . . . Parts Attached 85 | . 7 11 43 7 17 Power 5 | . . 1 4 . . Engine 4 | . . 1 3 . . Core 1 | . . . 1 . . Reactor . | . . . . . . Propulsion 26 | . 2 4 9 2 9 Treads 2 | . . 2 . . . Leg 6 | . . 1 5 . . Wheel 2 | . 2 . . . . Hover 9 | . . 1 4 2 2 Flight 7 | . . . . . 7 Utility 32 | . 3 5 17 4 3 Device 11 | . . 1 8 . 2 Storage 7 | . 3 1 2 . 1 Processor 5 | . . 1 2 2 . Hackware 3 | . . . 1 2 . Protection 6 | . . 2 4 . . Artifact . | . . . . . . Weapon 22 | . 2 1 13 1 5 Energy Gun 8 | . 2 . 4 . 2 Energy Cannon 5 | . . . 3 . 2 Ballistic Gun 4 | . . . 4 . . Ballistic Cannon . | . . . . . . Launcher 3 | . . . 2 1 . Special Weapon 1 | . . 1 . . . Impact Weapon . | . . . . . . Slashing Weapon 1 | . . . . . 1 Piercing Weapon . | . . . . . . Special Melee Weapon . | . . . . . . Unidentified Prototypes 6 | . . . 2 . 4 Parts Lost 27 | . . 7 9 3 8 Power 4 | . . 1 2 . 1 Propulsion 4 | . . 2 . 2 . Utility 11 | . . 1 5 . 5 Weapon 8 | . . 3 2 1 2 Highest Loss Streak 7 | . . 4 3 2 7 Average Slot Usage (%) 90 | . 93 73 90 98 86 Engine 6 | . 14 8 8 . . Core 1 | . . . . 7 3 Leg 5 | . 11 . 8 . . Wheel 2 | . 16 11 . . . Hover 7 | . . . 9 14 5 Flight 1 | . . . . . 8 Device 9 | . . . 14 7 5 Storage 10 | . 22 22 8 7 7 Processor 13 | . . 7 11 23 23 Hackware 7 | . . . 3 18 21 Protection 6 | . . 10 9 3 . Energy Gun 7 | . 28 3 5 7 . Energy Cannon 3 | . . . 5 6 1 Launcher 2 | . . . 4 . 2 Naked Turns . | . . . . . . Heaviest Build 57 | 12 41 57 43 39 30 Greatest Support 40 | 20 26 40 40 22 28 Greatest Overweight (x) 10 | . 1 10 4 2 6 Average Overweight (x) . | . . 1 . 1 1 Largest Inventory Capacity 22 | 6 16 22 10 10 10 Average Capacity 10 | 6 11 16 9 10 10 Most Carried 12 | 6 11 12 10 9 10 Average Carried 8 | 6 7 8 8 7 8 Final Capacity 16 | 6 16 4 10 10 10 Final Carried 11 | 6 11 4 10 8 4 Class Distribution -------------------- 69% | Mutant 29% | Hacker-Mutant Dominant Class ---------------- Mutant | -10/Materials Mutant | -9/Materials Mutant | -8/Materials Hacker-Mutant | -7/Factory Hacker-Mutant | -7/Storage Resources | -11 -10 -9 -8 -7 -7 ----------- Run | Scr Mat Mat Mat Fac Sto Matter Collected 1564 | 200 129 176 837 . 222 Remotely . | . . . . . . Salvage Created 2323 | . 219 147 1478 109 370 Parts 130 | . 7 12 90 8 13 Haulers Intercepted 10 | . 2 . 6 . 2 Recyclers Shooed 1 | . . . 1 . . Parts Field Recycled . | . . . . . . Retrieved Matter . | . . . . . . Parts Self-Destructed . | . . . . . . Prevented . | . . . . . . Kills | -11 -10 -9 -8 -7 -7 ------- Run | Scr Mat Mat Mat Fac Sto Combat Hostiles Destroyed 38 | . . 2 28 3 5 Melee 4 | . . . . . 4 Guns 9 | . . 1 8 . . Cannons 8 | . . . 7 . 1 AOE 17 | . . 1 13 3 . Classes Destroyed 12 | . 3 3 6 . . Worker 5 | . . . 5 . . Builder 5 | . . . 5 . . Tunneler 2 | . . 1 1 . . Hauler 10 | . 2 . 6 . 2 Recycler 3 | . 1 . 2 . . Operator 1 | . . . 1 . . Watcher 4 | . 1 1 2 . . Swarmer 6 | . . . 6 . . Grunt 20 | . . 1 13 2 4 Duelist 2 | . . 1 1 . . Sentry 9 | . . . 7 1 1 Hunter 1 | . . . 1 . . Best Kill Streak 9 | . 1 2 9 3 2 Combat Bots Only 6 | . . 2 6 3 2 Max Kills in Single Turn 2 | . 1 1 2 1 1 Gunslinging . | . . . . . . Exploded 2 | . . 1 2 1 . Melee 1 | . . . . . 1 Uniques/NPCs Destroyed . | . . . . . . Combat | -11 -10 -9 -8 -7 -7 -------- Run | Scr Mat Mat Mat Fac Sto Damage Taken 4610 | . 57 1107 1821 282 1343 Core 1338 | . 8 301 316 12 701 Absorbed by Shields . | . . . . . . Core Remaining (%) 65 | 100 96 24 42 . . Volleys Fired 182 | . 10 17 139 5 11 Largest 2 | . 2 2 2 2 1 Hottest 130 | . 80 100 130 97 65 Shots Fired 243 | . 20 18 185 9 11 Gun 143 | . 20 17 99 5 2 Cannon 62 | . . . 53 . 9 Launcher 37 | . . . 33 4 . Special 1 | . . 1 . . . Kinetic 19 | . . . 19 . . Thermal 150 | . . 1 133 5 11 Explosive 37 | . . . 33 4 . Electromagnetic 37 | . 20 17 . . . Robot Hit Streak 11 | . 7 7 11 8 7 Robot Miss Streak 4 | . 2 1 4 1 1 Penetration Max . | . . . . . . Secondary Targets . | . . . . . . Shots Hit Robots 188 | . 13 14 124 8 29 Core Hits 107 | . 6 9 75 7 10 Critical Hits 1 | . . . . . 1 Critical Kills 1 | . . . . . 1 Critical Parts Destroyed . | . . . . . . Melee Attacks 44 | . . . . . 44 Impact . | . . . . . . Slashing 44 | . . . . . 44 Piercing . | . . . . . . Sneak Attacks 1 | . . . . . 1 Combat Hostiles . | . . . . . . Follow-up Attacks . | . . . . . . Damage Inflicted 6155 | . 252 246 4457 247 953 Guns 1915 | . 153 165 1477 80 40 Cannons 1077 | . . . 861 . 216 Explosions 2441 | . 99 56 2119 167 . Melee 697 | . . . . . 697 Ramming 25 | . . 25 . . . Kinetic 225 | . . . 225 . . Thermal 2604 | . 99 56 2113 80 256 Explosive 2286 | . . . 2119 167 . Electromagnetic 318 | . 153 165 . . . Impact . | . . . . . . Slashing 697 | . . . . . 697 Piercing . | . . . . . . Highest Corruption 4 | . . . . . 4 Average Corruption 4 | . . . . . 4 Corruption Purged . | . . . . . . Effects 3 | . . . . . 3 Matter Fused 1 | . . . . . 1 Targeting Errors 2 | . . . . . 2 Overload Shots . | . . . . . . Overflow Damage 162 | . . 6 77 . 79 Projectiles 15 | . . . 15 . . Explosions 68 | . . 6 62 . . Melee 79 | . . . . . 79 Knockbacks . | . . . . . . Impact . | . . . . . . Kinetic . | . . . . . . Secondary . | . . . . . . Self-Inflicted Damage 246 | . 57 11 178 . . Shots 9 | . 3 . 6 . . Rammed 4 | . . 4 . . . Targets Rammed 4 | . . 4 . . . Kicked . | . . . . . . Crushed . | . . . . . . Highest Temperature 327 | . 48 15 327 105 74 Average Temperature 74 | . 21 8 86 52 34 Received Heat Transfer 1398 | . . 255 558 72 513 Siege Activations . | . . . . . . Robots Corrupted . | . . . . . . Combat Hostiles . | . . . . . . Parts Fried . | . . . . . . Impact Corruptions . | . . . . . . Robots Melted . | . . . . . . Combat Hostiles . | . . . . . . Parts Melted 7 | . . . 7 . . Heat Transferred 4283 | . 150 100 3515 148 370 Parts Sabotaged . | . . . . . . Parts Stolen . | . . . . . . Parts Stripped . | . . . . . . Power Chain Reactions 4 | . 3 1 . . . Missiles Intercepted . | . . . . . . Alert | -11 -10 -9 -8 -7 -7 ------- Run | Scr Mat Mat Mat Fac Sto Peak Influence 775 | . 56 180 775 355 439 Initial 343 | . . 23 69 343 118 Average 343 | . 17 131 491 328 232 Maximum Alert Level 3 | . . . 3 1 2 Low Security (%) 35 | 100 100 100 17 4 45 Level 1 22 | . . . 4 95 32 Level 2 29 | . . . 53 . 21 Level 3 12 | . . . 24 . . Level 4 . | . . . . . . Level 5 . | . . . . . . High Security . | . . . . . . Max Security . | . . . . . . Squads Dispatched 13 | . . 2 7 . 4 Investigation 3 | . . 1 2 . . Extermination . | . . . . . . Reinforcement 4 | . . 1 2 . 1 Assault 1 | . . . . . 1 Garrison 5 | . . . 3 . 2 Intercept . | . . . . . . Construction Impeded 1 | . . . 1 . . Haulers Reinforced 1 | . . . . . 1 Stealth | -11 -10 -9 -8 -7 -7 --------- Run | Scr Mat Mat Mat Fac Sto Distress Signals 2 | . . 1 1 . . Communications Jammed . | . . . . . . Distress Signals . | . . . . . . Times Spotted 89 | . 5 21 40 9 14 Peak Tracking Total 11 | . 2 11 6 4 6 Tactical Retreats 5 | . . 3 1 . 1 Traps | -11 -10 -9 -8 -7 -7 ------- Run | Scr Mat Mat Mat Fac Sto Traps Triggered 4 | . . 1 1 2 . Indirectly . | . . . . . . Trap Hack Attempts . | . . . . . . Triggered . | . . . . . . Disarmed . | . . . . . . Reprogrammed . | . . . . . . Reused . | . . . . . . Traps Extracted . | . . . . . . Installed . | . . . . . . Triggered 1 | . . 1 . . . Machines | -11 -10 -9 -8 -7 -7 ---------- Run | Scr Mat Mat Mat Fac Sto Machines Disabled 12 | . 1 2 5 2 2 Max in Single Turn 2 | . 1 2 2 1 1 Garrison Access 1 | . . . . . 1 Machines Sabotaged . | . . . . . . Garrisons Compromised . | . . . . . . Overloaded Fab Kills . | . . . . . . Fab Network Shutdowns . | . . . . . . Hacking | -11 -10 -9 -8 -7 -7 --------- Run | Scr Mat Mat Mat Fac Sto Machines Accessed 13 | . 1 1 8 1 2 Terminals 8 | . 1 . 5 . 2 Fabricators 1 | . . . . 1 . Repair Stations 1 | . . . 1 . . Recycling Units 1 | . . 1 . . . Scanalyzers 2 | . . . 2 . . Garrison Access . | . . . . . . Total Hacks 39 | . 2 2 22 6 7 Successful 27 | . 1 2 19 2 3 Failed 12 | . 1 . 3 4 4 Catastrophic 3 | . 1 . 1 . 1 Database Lockouts . | . . . . . . Manual . | . . . . . . Terminals 17 | . 2 . 8 . 7 Fabricators 6 | . . . . 6 . Repair Stations 3 | . . . 3 . . Recycling Units 2 | . . 2 . . . Scanalyzers 11 | . . . 11 . . Garrison Access . | . . . . . . Terminal Hacks 10 | . 1 . 6 . 3 Part Schematic 1 | . . . . . 1 Prototype ID Bank 2 | . . . 2 . . Open Door 1 | . . . . . 1 Terminal Index 1 | . . . . . 1 Scanalyzer Index 1 | . . . 1 . . Alert Level 1 | . . . 1 . . Locate Traps 1 | . 1 . . . . Dispatch Records 1 | . . . 1 . . Security Status 1 | . . . 1 . . Fabricator Hacks 2 | . . . . 2 . Load Schematic 1 | . . . . 1 . Build 1 | . . . . 1 . Repair Station Hacks 2 | . . . 2 . . Scan Component 1 | . . . 1 . . Repair 1 | . . . 1 . . Recycling Unit Hacks 2 | . . 2 . . . Report Inventory 1 | . . 1 . . . Retrieve Components 1 | . . 1 . . . Scanalyzer 11 | . . . 11 . . Insert Component 4 | . . . 4 . . Analyze 7 | . . . 7 . . Garrison Access Hacks . | . . . . . . Unauthorized Hacks . | . . . . . . Terminals . | . . . . . . Fabricators . | . . . . . . Repair Stations . | . . . . . . Recycling Units . | . . . . . . Scanalyzers . | . . . . . . Garrison Access . | . . . . . . Data Cores Recovered . | . . . . . . Used . | . . . . . . Hacking Detections 9 | . 1 1 5 1 1 Full Trace Events 2 | . . . 2 . . Feedback Events . | . . . . . . Feedback Blocked . | . . . . . . Robot Schematics Acquired . | . . . . . . Robots Built . | . . . . . . Matter . | . . . . . . Time . | . . . . . . Total Robot Build Rating . | . . . . . . Part Schematics Acquired 5 | . . . 4 . 1 Parts Built 1 | . . . . 1 . Matter 146 | . . . . 146 . Time 36 | . . . . 36 . Total Part Build Rating 3 | . . . . 3 . Parts Repaired 1 | . . . 1 . . Time 26 | . . . 26 . . Parts Recycled . | . . . . . . Recycled Matter . | . . . . . . Retrieved Matter . | . . . . . . Retrieved Components 1 | . . 1 . . . Parts Scanalyzed 4 | . . . 4 . . Part Schematics Acquired 4 | . . . 4 . . Parts Damaged . | . . . . . . Bothacking | -11 -10 -9 -8 -7 -7 ------------ Run | Scr Mat Mat Mat Fac Sto Used RIF Installer . | . . . . . . Robots Hacked . | . . . . . . Non-combat . | . . . . . . Combat . | . . . . . . Robot Hacks Applied . | . . . . . . Relay Couplers Released . | . . . . . . Robots Rewired . | . . . . . . Allies Hacked . | . . . . . . Hacks Repelled . | . . . . . . Allies | -11 -10 -9 -8 -7 -7 -------- Run | Scr Mat Mat Mat Fac Sto Total Allies . | . . . . . . Largest Group . | . . . . . . Highest-Rated Group . | . . . . . . Highest-Rated Ally . | . . . . . . Total Orders . | . . . . . . Ally Attacks . | . . . . . . Total Damage . | . . . . . . Kills . | . . . . . . Allies Corrupted . | . . . . . . Allies Melted . | . . . . . . Intel | -11 -10 -9 -8 -7 -7 ------- Run | Scr Mat Mat Mat Fac Sto Robot Analysis Total . | . . . . . . Derelict Logs Recovered . | . . . . . . Drone Launches . | . . . . . . Drone Recoveries . | . . . . . . Exploration | -11 -10 -9 -8 -7 -7 ------------- Run | Scr Mat Mat Mat Fac Sto Turns Passed 2902 | 3 342 245 1458 471 383 Spaces Moved 1754 | 3 272 150 905 259 165 Core 72 | . . 1 1 . 70 Treads 38 | . . 38 . . . Legs 382 | 3 104 . 275 . . Wheels 266 | . 168 98 . . . Hover 981 | . . 13 629 259 80 Flight 15 | . . . . . 15 Fastest Speed 46 | 120 90 70 46 116 46 Average Speed 112 | 120 107 121 110 121 110 Slowest Speed 550 | 120 150 550 250 180 360 Overloaded Moves 2 | . . . . . 2 Propulsion Burnouts . | . . . . . . Robots Hopped . | . . . . . . Cave-ins Triggered 1 | . . . . . 1 Exploration Rate (%) 29 | 2 31 27 78 9 27 Regions Visited 5 Branch Regions 1 Pre-discovered Areas . | . . . . . . Known Exits Taken . | . . . . . . Unknown Exits Taken 5 | 1 1 1 1 1 . Scrap Searched . | . . . . . . Spaces Dug 8 | . . . 1 . 7 Terrain Destroyed 200 | . 5 3 173 11 8 Melee 7 | . . . . . 7 Projectile 16 | . . 1 14 . 1 AOE 177 | . 5 2 159 11 . Terrain Rammed . | . . . . . . Walls Destroyed . | . . . . . . Machines Disabled . | . . . . . . Actions | -11 -10 -9 -8 -7 -7 --------- Run | Scr Mat Mat Mat Fac Sto Total 2374 | 2 301 189 1185 406 291 Wait 200 | . . . 36 131 33 Move 1749 | 2 271 149 904 258 165 Hop . | . . . . . . Pick Up 58 | . 9 3 33 3 10 Fast Attach 17 | . 1 . 14 . 2 Attach 47 | . 3 9 19 4 12 Detach 7 | . . 1 5 1 . Swap 21 | . 3 2 10 3 3 Drop 45 | . 4 4 25 1 11 Fire 182 | . 10 17 139 5 11 Melee 44 | . . . . . 44 Ram 4 | . . 4 . . . Kick . | . . . . . . Crush . | . . . . . . Escape Stasis . | . . . . . . Rewire . | . . . . . . Trap . | . . . . . . Miscellaneous . | . . . . . . Route ------- -11/Scrapyard -10/Materials -9/Materials (discovered 2 exits: *Mat / [*Min]) -8/Materials (discovered 2 exits: *Fac x2) -7/Factory -7/Storage History --------- Turn | Location | Event 1 | -11/Scrapyard | Discovered new exit (range 0) 4 | -11/Scrapyard | Entered Materials 165 | -10/Materials | Discovered new exit (range 11) 313 | -10/Materials | Build established: Mutant 346 | -10/Materials | Entered another Materials area 346 | -9/Materials | Evolved 2 slots: Utility x2 532 | -9/Materials | Lost 4 parts (1p2n1w) 539 | -9/Materials | Core integrity fell below 50% 543 | -9/Materials | Discovered new exit (range 7) 590 | -9/Materials | Discovered new exit (range 3) 591 | -9/Materials | Entered another Materials area 591 | -8/Materials | Evolved 2 slots: Utility x2 743 | -8/Materials | Repaired Propulsion Shielding 925 | -8/Materials | Discovered new exit (range 11) 1056 | -8/Materials | Lost 3 parts (1u2w) 1370 | -8/Materials | Garrison activated, responded to threat 1489 | -8/Materials | Discovered new exit (range 11) 1500 | -8/Materials | Core integrity fell below 50% 2049 | -8/Materials | Entered Factory 2049 | -7/Factory | Evolved 2 slots: Utility x2 2315 | -7/Factory | Fabricated System Shield (x1) 2337 | -7/Factory | Build established: Hacker-Mutant 2495 | -7/Factory | Discovered new exit (range 11) 2520 | -7/Factory | Entered Storage 2668 | -7/Storage | Garrison activated, responded to threat 2840 | -7/Storage | Crushed by falling debris 2871 | -7/Storage | Core integrity fell below 50% 2898 | -7/Storage | Core integrity fell below 20% 2903 | -7/Storage | Destroyed by G-47 Trooper with Particle Gun Last Messages --------------- 02870_ Slug penetrates Wall. 02873_ R-06 Scavenger collects Particle Gun. 02874_ Slug penetrates Wall. 02874_ System corrupted: Katana targeting data glitched. 02878_ R-06 Scavenger collects Imp. Heat Sink. 02881_ R-06 Scavenger collects Aluminum Leg. 02882_ Adv. Beam Rifle destroyed. 02885_ System Shield destroyed. 02887_ Y-54 Guardian destroyed. 02889_ Slug penetrates Wall. 02890_ C-30 ARC bursts open, deploying its payload. 02890_ G-50 Soldier unfolds itself. 02890_ G-47 Trooper unfolds itself. 02890_ I-36 Angel unfolds itself. 02891_ U-05 Engineer builds a Wall. 02892_ Hacking Suite destroyed. 02895_ System corrupted: Katana targeting data glitched. 02897_ R-06 Scavenger collects Lgt. Nuclear Core. 02898_ Slug penetrates Wall. 02902_ Dropped Cld. VTOL Module. Map ----- +----------------------------------------------------+ | ????????????????????????????????????????????????? | | ????????????????????????????????????????????????? | | ????????????????????????????????????????????????? | | ????????????????????????????????????????????????? | | ????????????????????????????????????????????????? | | ????????????????????????????????????????????????? | | ????????????????????????????????????????? ?????? | | ????????????????????????????????????????? ?????? | | ????????????????????????????????????????? #????? | | ????????????????????????????????????????" #????? | | ????????????????????????????????????????" +????? | | ????????????????????????????????????????" #????? | | ??????????????????????????????????????? #????? | | ?????????????????????????????????????? #????? | | ??????????????????????????????????????""" #????? | | ??????????????????????????????????????""" #????? | | ???????????????????????????????????????"" #????? | | ??????????????????????????????????????? #????? | | ??????????????????????????????????????? #????? | | ????????????#####??????????????????????#a #????? | | ????????????#"""#????#####?????????????# +????? | | ??????????###"G"#????#===#?????????????# #????? | | ??????????#"# "######===#?????????????# #????? | | #########?# ###" "##????????????# #????? | | # "#?# """ ##" =%T#????????????# #????? | | # """"##?# """ #####@#########+##### ###### | | # """"#### """ # i%%u = | | # """"##"" + ggg | | # """"##"T """^# % g | | # "# """ ### ##################+####### | | ####+###### ! """ #?#r#????????????????????????? | | ???# #???# #?#*#????????????????????????? | | ???# #???###########?#=#????????????????????????? | | ???# #################=#????????????????????????? | | ???# !==[=%=#????????????????????????? | | ???#####################????????????????????????? | | ????????????????????????????????????????????????? | | ????????????????????????????????????????????????? | | ????????????????????????????????????????????????? | | | | | | | | | | | | | | | | | | | | | | | +----------------------------------------------------+ Best States ------------- Heat Dissipation 34 Coolant Potential 50 Energy Generation 14 Energy Capacity 400 Matter Stores 300 Matter Capacity 300 Sight Range 22 Robot Scan Range 10 Terrain Scan Density 10 Additional Mass Support 6 Armor Coverage 600 Core Shielding 20 Propulsion Shielding 33 Evasion (%) 61 Targeting Accuracy 8 Recoil Reduction 2 Particle Charging 15 Offensive Hacking 10 Defensive Hacking 20 Item Schematics ----------------- Hacking Suite | -8/Materials | Scanalyzed Imp. Grenade Launcher | -8/Materials | Scanalyzed Gravmag System | -8/Materials | Scanalyzed System Shield | -8/Materials | Scanalyzed Imp. Cryofiber Web | -7/Storage | Hacked Robot Schematics ------------------ None Fabricated ------------ System Shield | x1 | -7/Factory Alien Tech Used ----------------- None Achievements -------------- None Challenges ------------ None Game ------ Seed ChromaticCoreFirepult Manual? 0 Play Time 00:31:14 Cumulative 46.8 hours Start 2021.07.25 @ 21:00:02 End 2021.07.25 @ 21:31:46 Sessions 1 Manual Loads 0 Difficulty Rogue Special Mode None Game No. 72 Rogue 72 Adventurer 0 Explorer 0 Win Type - Total 0 Types 0/0/0/0/0/0/0/0/0 Lore% 26 Gallery% 44 Achievement% 29 Wizard Run 0 Options --------- ASCII 0 Keyboard 0 Movement Mouse Keybinds 0 Fullscreen 1 Font 16/Cog Map View 76x50 Tactical HUD 1 Map Filters NONE Filters NONE Steam 1 RUN: f66c17ec-05cc-468a-9a2b-f538f48cbf42